bitfinex/quotes_ETHUSD_20250625
["timestamp","ask_amount","ask_price","bid_price","bid_amount"]
[1750846177323,4.13175046,2420.3,2420.0,0.7903]
[1750846177528,10.55,2420.5,2419.8,0.7863]
[1750846177718,4.13224668,2420.0,2419.8,0.7863]
[1750846177944,4.13224668,2420.0,2419.6,0.7596]
[1750846178828,4.13240414,2419.9,2419.6,0.7596]
[1750846179261,10.55,2420.5,2419.6,0.7596]
[1750846179567,4.13215016,2420.1,2419.6,4.8924214]
[1750846179734,4.68198,2420.2,2419.7,4.13272762]
[1750846180067,4.13179107,2420.3,2419.8,4.13253865]
[1750846180221,4.13179107,2420.3,2419.6,4.89244516]
[1750846180222,4.13189718,2420.2,2419.7,4.13267137]
[1750846180433,14.13182138,2420.3,2419.6,4.89244516]
[1750846180626,4.13191831,2420.2,2419.7,4.13263307]
[1750846181052,10.0,2420.3,2419.8,4.13240875]
[1750846181260,4.13163382,2420.4,2419.9,0.7706]
[1750846181553,4.13163382,2420.4,2419.9,4.90298141]
[1750846182037,10.0,2420.4,2419.9,4.90290392]
[1750846182243,10.0,2420.5,2420.0,0.7706]
[1750846182542,4.13109008,2420.7,2420.0,4.1321667]
[1750846182750,10.0,2420.6,2420.2,4.13177087]
[1750846182929,4.13092461,2420.8,2420.1,0.7706]
[1750846183129,14.13111244,2420.7,2420.2,4.13181112]
[1750846183352,4.13127634,2420.6,2420.1,4.90262512]
[1750846183558,4.13148364,2420.5,2420.1,0.7706]
[1750846185451,4.1317292,2420.3,2420.1,0.7706]
[1750846185970,4.13146889,2420.5,2420.1,0.7706]
[1750846186441,4.13156115,2420.4,2420.1,0.7706]
[1750846186641,4.13145744,2420.5,2420.1,0.7706]
[1750846187034,4.13156091,2420.4,2420.1,0.7706]
[1750846187958,4.13203014,2420.2,2419.9,0.8267]
[1750846188163,4.13206322,2420.1,2419.9,0.8267]
[1750846188651,4.13190503,2420.2,2419.9,0.8267]
[1750846188652,4.1322314,2420.0,2419.9,0.8267]
[1750846188836,4.13212932,2420.1,2419.9,0.8267]
[1750846189034,4.13225286,2420.0,2419.6,0.8267]
[1750846189255,4.13203453,2420.2,2419.7,4.13263764]
[1750846189862,4.13207077,2420.1,2419.7,4.13263764]
[1750846190060,4.13207077,2420.1,2419.6,4.95952744]
[1750846190263,4.13224686,2420.0,2419.6,0.8267]
[1750846190574,4.13224686,2420.0,2419.6,4.95960079]
[1750846190867,4.13215055,2420.1,2419.6,4.95960079]
[1750846191234,4.13226758,2420.0,2419.6,0.8267]
[1750846191432,4.13226758,2420.0,2419.6,4.95959982]
[1750846191631,4.13214231,2420.1,2419.6,4.95959982]
[1750846192127,4.13198386,2420.2,2419.7,4.13273139]
[1750846192328,4.13211194,2420.1,2419.6,4.95949615]
[1750846192532,4.13198126,2420.2,2419.7,4.13274312]
[1750846193873,4.13208369,2420.1,2419.6,4.95952451]
[1750846194876,4.13231168,2420.0,2419.6,0.8267]
[1750846195057,4.13240748,2419.9,2419.6,0.8267]
[1750846195262,4.13261361,2419.8,2419.6,0.8267]
[1750846195453,4.13274372,2419.7,2418.8,0.7681]
[1750846195653,0.55,2419.7,2418.9,0.7681]
[1750846195854,4.13393964,2419.0,2418.9,0.7681]
[1750846196056,4.13428474,2418.8,2418.6,0.7681]
[1750846196255,4.1341947,2418.9,2418.6,0.7681]
[1750846196483,4.13429313,2418.8,2418.6,0.7681]
[1750846196956,4.1338583,2419.1,2418.6,0.7681]
[1750846197144,4.13394275,2419.0,2418.6,0.7681]
[1750846197350,4.13416054,2418.9,2418.6,0.7681]
[1750846197578,4.13399297,2419.0,2418.6,0.7681]
[1750846197777,4.13361268,2419.2,2418.7,4.13440876]
[1750846198082,4.13356535,2419.3,2418.7,4.13445239]
[1750846198283,10.0,2419.4,2418.8,4.1341533]
[1750846198480,10.0,2419.4,2418.8,4.13418185]
[1750846198686,10.0,2419.4,2418.9,0.7996]
[1750846198986,10.0,2419.4,2418.9,4.93369091]
[1750846199198,4.13325938,2419.4,2418.9,0.7996]
[1750846199485,4.13325938,2419.4,2418.9,4.93367949]
[1750846199850,4.68317296,2419.5,2419.0,4.13386806]
[1750846200051,4.6828503,2419.7,2419.0,4.13386806]
[1750846200052,10.0,2419.6,2419.0,4.13386806]
[1750846200287,10.0,2419.4,2418.9,4.93363048]
[1750846200589,10.0,2419.4,2419.0,4.13392125]
[1750846200794,10.0,2419.4,2419.0,4.13393964]
[1750846200998,10.0,2419.4,2418.9,4.93361969]
[1750846201294,4.13327528,2419.4,2418.9,4.93361969]
[1750846201476,1.54269064,2419.6,2418.9,4.9337065]
[1750846201685,15.67570037,2419.6,2419.1,4.13371204]
[1750846201857,11.98084574,2419.5,2419.1,4.13371204]
[1750846202061,16.11394451,2419.5,2419.0,4.13387107]
[1750846202758,11.98084574,2419.5,2419.1,4.1337607]
[1750846203169,16.11395417,2419.5,2419.0,4.13387382]
[1750846204121,0.65247594,2420.4,2418.9,0.7996]
[1750846204399,4.13194421,2420.2,2419.5,0.7598]
[1750846204588,4.13266872,2419.8,2419.5,0.7598]
[1750846205102,4.13419639,2418.9,2418.0,0.796]
[1750846205266,4.13394313,2419.0,2418.4,4.13495184]
[1750846205607,4.13264225,2419.8,2418.9,0.796]
[1750846205768,4.13345569,2419.3,2418.9,0.796]
[1750846205969,4.13368678,2419.2,2418.9,0.796]
[1750846206300,4.13345569,2419.3,2418.9,0.796]
[1750846206301,4.13384989,2419.1,2418.9,0.796]
[1750846206488,4.13369342,2419.2,2418.9,0.796]
[1750846206687,14.1336158,2419.2,2418.9,0.796]
[1750846206994,4.1336158,2419.2,2418.9,0.796]
[1750846207198,14.1336158,2419.2,2418.9,0.796]
[1750846208021,4.7841861,2420.4,2419.0,0.7628]
[1750846208188,0.65247594,2420.4,2419.1,4.13376875]
[1750846208384,4.13288586,2419.7,2419.2,0.7628]
[1750846208589,4.13288586,2419.7,2419.2,4.89636863]
[1750846209014,4.13275924,2419.7,2419.2,4.89636863]
[1750846211418,4.13291683,2419.6,2419.2,0.7628]
[1750846211923,4.13309697,2419.5,2419.2,0.7628]
[1750846212797,4.13298071,2419.6,2419.2,0.7628]
[1750846213123,4.68186752,2420.3,2419.4,0.7683]
[1750846213124,0.55,2420.3,2419.4,0.7683]
[1750846213296,4.1324808,2419.9,2419.4,4.90147461]
[1750846213905,10.0,2419.9,2419.6,0.7683]
[1750846215835,4.13274372,2419.7,2419.6,0.7683]
[1750846216150,4.13274372,2419.7,2419.3,0.7824]
[1750846216347,4.13298857,2419.6,2419.3,0.7824]
[1750846217039,4.13283386,2419.7,2419.3,0.7824]
[1750846218234,4.13266759,2419.8,2419.3,4.91580781]
[1750846218553,4.13275843,2419.7,2419.3,0.7824]
[1750846218767,4.13293908,2419.6,2419.3,0.7824]
[1750846219125,4.1328354,2419.7,2419.3,0.7824]
[1750846220659,4.13229127,2420.0,2419.4,4.13313068]
[1750846220952,4.13287707,2419.7,2419.3,0.7824]
[1750846222028,4.13266645,2419.8,2419.3,4.915822]
[1750846222858,4.13277701,2419.7,2419.3,0.7824]
[1750846223846,4.13277701,2419.7,2419.3,4.91581337]
[1750846224272,4.13277701,2419.7,2419.3,0.7824]
[1750846224872,4.13260945,2419.8,2419.3,4.91575083]
[1750846224873,4.13264393,2419.8,2419.3,4.91575083]
[1750846226946,4.13245726,2419.9,2419.4,4.13322037]
[1750846226947,14.13248059,2419.9,2419.4,4.13322037]
[1750846227143,14.13248059,2419.9,2419.5,0.8194]
[1750846227539,4.13258799,2419.8,2419.5,0.8194]
[1750846227739,14.13248576,2419.9,2419.5,0.8194]
[1750846228655,0.20486197,2420.8,2419.6,0.8217]
[1750846228974,4.13273879,2419.8,2419.6,0.8217]
[1750846229443,4.13274372,2419.7,2419.3,0.8127]
[1750846229793,4.13303322,2419.6,2419.3,0.8127]
[1750846230154,4.13313088,2419.5,2419.3,0.8127]
[1750846230371,10.0,2420.2,2419.3,0.8127]
[1750846230372,4.13297092,2419.6,2419.3,0.8127]
[1750846230878,4.13249938,2419.9,2419.4,4.13324928]
[1750846231055,4.13249938,2419.9,2419.5,4.1330728]
[1750846231448,4.13249938,2419.9,2419.4,4.13316608]
[1750846231794,4.13249938,2419.9,2419.5,0.7814]
[1750846232095,4.13267272,2419.8,2419.5,0.7814]
[1750846232242,14.1316852,2420.4,2419.5,0.7814]
[1750846232445,14.13230352,2420.0,2419.5,4.91436378]
[1750846232639,4.13242124,2419.9,2419.5,0.7814]
[1750846233284,4.13240216,2419.9,2419.5,0.7814]
[1750846233497,4.1326477,2419.8,2419.5,0.7814]
[1750846235284,4.13247522,2419.9,2419.5,0.7814]
[1750846237193,14.13231893,2420.0,2419.5,4.91448241]
[1750846237344,14.13229975,2420.0,2419.5,0.7814]
[1750846237549,4.13267003,2419.8,2419.5,0.7814]
[1750846238991,4.1330475,2419.6,2419.1,4.13365024]
[1750846239215,14.13226151,2420.0,2418.9,0.8319]
[1750846239216,4.13346273,2419.3,2418.9,0.8319]
[1750846239363,4.13360375,2419.2,2418.9,0.8319]
[1750846240206,10.55,2419.5,2418.9,0.8319]
[1750846240411,4.13359788,2419.2,2418.9,0.8319]
[1750846240703,4.13393964,2419.0,2418.9,0.8319]
[1750846242205,4.13359788,2419.2,2418.9,0.8319]
[1750846242386,4.13359788,2419.2,2418.2,0.7675]
[1750846242387,0.55570777,2419.2,2418.2,0.7675]
[1750846242709,4.13401836,2419.0,2418.6,0.7675]
[1750846243114,4.13444327,2418.8,2418.3,0.7675]
[1750846243266,0.55,2419.1,2418.3,0.7675]
[1750846243589,0.55,2419.1,2418.3,4.90263336]
[1750846243590,4.13435811,2418.8,2418.3,4.90263336]
[1750846243897,4.13422346,2418.9,2418.3,4.90263336]
[1750846244089,4.13430727,2418.8,2418.3,4.90263336]
[1750846244478,4.13420164,2418.9,2418.3,4.90263336]
[1750846244793,4.13428703,2418.8,2418.3,4.90263336]
[1750846245296,4.13449253,2418.7,2418.3,0.7675]
[1750846246009,4.13428703,2418.8,2418.3,0.7675]
[1750846246287,4.13455498,2418.7,2418.3,0.7675]
[1750846247775,4.1346255,2418.6,2418.3,0.7675]
[1750846248998,4.13496526,2418.4,2418.1,0.8282]
[1750846249409,4.13445239,2418.7,2418.1,0.8282]
[1750846249714,4.13517865,2418.3,2418.1,0.8282]
[1750846250488,0.55,2418.5,2417.7,4.13614906]
[1750846250698,4.13563461,2418.1,2417.6,0.7501]
[1750846250871,4.13596828,2417.9,2417.6,0.7501]
[1750846251571,10.0,2418.4,2417.6,0.7501]
[1750846251764,10.0,2418.4,2417.7,4.13606657]
[1750846251998,10.0,2418.3,2417.9,4.13580447]
[1750846252183,4.13480405,2418.5,2418.0,0.82]
[1750846252496,14.13470423,2418.6,2418.1,4.13547218]
[1750846252694,4.13481159,2418.5,2418.0,4.95555871]
[1750846252862,4.13481159,2418.5,2418.1,4.13546397]
[1750846253066,14.13457461,2418.7,2418.2,4.9503451]
[1750846253067,14.13458784,2418.7,2418.2,4.9503451]
[1750846253299,4.13463655,2418.6,2418.2,0.8151]
[1750846253509,14.13454552,2418.7,2418.2,0.8151]
[1750846253668,14.13454552,2418.7,2418.2,4.95039868]
[1750846254000,10.0,2418.7,2418.3,4.13510677]
[1750846254200,14.13446729,2418.7,2418.2,4.95032874]
[1750846254967,4.13430273,2418.8,2418.3,4.13503873]
[1750846255168,10.0,2418.7,2418.3,4.13503873]
[1750846255364,4.13428248,2418.8,2418.3,4.95891847]
[1750846256369,14.13419188,2418.9,2418.5,0.8103]
[1750846256609,10.0,2418.9,2418.5,4.94504392]
[1750846257079,4.13411749,2418.9,2418.5,0.8103]
[1750846257283,4.13411054,2418.9,2418.5,0.8103]
[1750846257466,4.13434267,2418.8,2418.5,0.8103]
[1750846258008,10.0,2419.1,2418.5,0.8103]
[1750846258199,4.13419844,2418.9,2417.9,4.88710951]
[1750846258375,4.13499611,2418.4,2417.9,4.88710951]
[1750846258574,4.96197698,2418.4,2417.9,4.88710951]
[1750846258770,4.13499611,2418.4,2417.9,4.88710951]
[1750846259395,4.13469252,2418.6,2417.9,4.88710951]
[1750846259396,4.13560654,2418.1,2417.9,0.7514]
[1750846260208,4.13538987,2418.2,2417.9,0.7514]
[1750846260396,4.13564929,2418.0,2417.9,0.7514]
[1750846260783,4.13556423,2418.1,2417.9,0.7514]
[1750846261611,4.13556423,2418.1,2417.7,0.7599]
[1750846262113,4.13541389,2418.2,2417.7,4.89603269]
[1750846262310,4.13536749,2418.2,2417.7,0.7599]
[1750846262516,4.13583626,2417.9,2417.7,0.7599]
[1750846262718,4.13572767,2418.0,2417.7,0.7599]
[1750846262890,10.0,2418.2,2417.7,0.7599]
[1750846263092,4.13592898,2417.9,2417.7,0.7599]
[1750846263712,4.1359573,2417.9,2417.4,4.13663149]
[1750846263903,4.1354138,2418.2,2417.5,0.8006]
[1750846264279,4.13590655,2417.9,2417.5,0.8006]
[1750846264483,4.13606611,2417.8,2417.5,0.8006]
[1750846264894,4.13551682,2418.1,2417.5,0.8006]
[1750846265093,4.54928802,2418.0,2417.5,4.93708679]
[1750846265494,4.13573634,2418.0,2417.5,4.93708679]
[1750846266209,4.13545534,2418.2,2417.5,0.8006]
[1750846266394,4.13549039,2418.1,2417.6,4.13622095]
[1750846267419,4.13549039,2418.1,2417.8,0.8279]
[1750846268814,4.1356497,2418.0,2417.8,0.8279]
[1750846269039,4.13614953,2417.8,2417.6,0.7767]
[1750846269349,4.13604465,2417.8,2417.3,4.91349329]
[1750846270147,4.13584084,2417.9,2417.3,4.91349329]
[1750846270148,4.13590959,2417.9,2417.4,4.13665623]
[1750846270432,4.13599643,2417.8,2417.3,4.91345596]
[1750846270632,0.82711439,2418.0,2417.4,4.13653071]
[1750846270787,0.55,2418.4,2417.3,0.7767]
[1750846270988,4.13577395,2418.0,2417.5,4.1364901]
[1750846271634,4.13557245,2418.1,2417.6,4.92384877]
[1750846271917,4.13566008,2418.0,2417.6,0.7876]
[1750846272087,4.13566008,2418.0,2417.6,4.92393247]
[1750846272522,4.13566008,2418.0,2417.6,0.7876]
[1750846272691,4.13577638,2418.0,2417.6,0.7876]
[1750846272884,4.13577638,2418.0,2417.6,4.9239149]
[1750846273116,4.13557082,2418.1,2417.6,4.9239149]
[1750846273288,4.13565606,2418.0,2417.6,0.7876]
[1750846273909,4.13565606,2418.0,2417.6,4.92392912]
[1750846274308,4.13556094,2418.1,2417.6,4.92392912]
[1750846274506,4.13376025,2419.2,2417.7,0.7694]
[1750846274694,4.13505539,2418.4,2417.9,4.13579936]
[1750846275006,4.13505539,2418.4,2418.0,0.7694]
[1750846275213,4.13487683,2418.5,2418.0,4.90503659]
[1750846275414,4.13467413,2418.6,2418.1,4.13534741]
[1750846275813,4.13465807,2418.6,2418.2,0.8146]
[1750846276300,4.13440711,2418.8,2418.2,4.94981132]
[1750846276622,10.0,2418.7,2418.3,4.13511106]
[1750846276992,10.0,2418.7,2418.2,0.8146]
[1750846276993,4.1344739,2418.7,2418.2,0.8146]
[1750846277193,4.13471122,2418.6,2418.2,0.8146]
[1750846277393,14.13454321,2418.7,2418.2,4.94988187]
[1750846278031,4.1346433,2418.6,2418.2,0.8146]
[1750846279523,4.13480379,2418.5,2418.2,0.8146]
[1750846279724,4.13490244,2418.5,2418.2,0.8146]
[1750846279909,4.13468711,2418.6,2418.2,0.8146]
[1750846280111,4.13513625,2418.3,2418.2,0.8146]
[1750846280425,4.13555429,2418.1,2417.9,0.7607]
[1750846280594,0.55,2418.5,2416.9,0.7607]
[1750846280792,4.13609745,2417.8,2417.4,0.7607]
[1750846280991,4.13622012,2417.7,2417.4,0.7607]
[1750846281891,4.13603503,2417.8,2417.4,0.7607]
[1750846284028,4.13586119,2417.9,2417.4,4.89736426]
[1750846284225,0.55,2418.1,2417.4,0.7607]
[1750846284426,4.13612275,2417.8,2417.4,0.7607]
[1750846285331,4.13589731,2417.9,2417.4,4.89737121]
[1750846286240,4.13617827,2417.7,2417.4,0.7607]
[1750846286540,4.13698973,2417.3,2416.8,0.8213]
[1750846286836,0.55,2417.7,2416.6,0.8213]
[1750846286837,0.75452058,2417.7,2416.6,0.8213]
[1750846287021,0.55,2417.4,2416.6,0.8213]
[1750846287224,4.13778298,2416.8,2416.6,0.8213]
[1750846287424,4.13754901,2416.9,2416.6,0.8213]
[1750846287607,4.13748949,2417.0,2416.6,0.8213]
[1750846287805,4.96496853,2417.0,2416.6,0.8213]
[1750846288035,4.13754591,2416.9,2416.6,0.8213]
[1750846289254,4.13736742,2417.0,2416.6,0.8213]
[1750846289747,4.13753738,2416.9,2416.6,0.8213]
[1750846290048,4.13787396,2416.7,2416.6,0.8213]
[1750846290207,4.13819517,2416.6,2416.1,4.90907961]
[1750846290840,4.13831516,2416.5,2416.1,0.7702]
[1750846291210,4.13842472,2416.4,2416.1,0.7702]
[1750846291421,4.13718919,2417.1,2416.2,4.13857479]
[1750846291650,0.55,2416.9,2416.1,0.7702]
[1750846292016,4.13865456,2416.3,2416.1,0.7702]
[1750846292350,4.13840683,2416.4,2416.1,0.7702]
[1750846292726,4.13830777,2416.5,2416.1,0.7702]
[1750846293069,4.13854305,2416.4,2416.1,0.7702]
[1750846293412,4.13857955,2416.3,2416.1,0.7702]
[1750846293606,4.13891745,2416.1,2415.7,0.7911]
[1750846293832,4.13882018,2416.2,2415.7,4.93068482]
[1750846294034,4.1386448,2416.3,2415.8,4.13940754]
[1750846294208,4.1386448,2416.3,2415.7,4.93060992]
[1750846294209,4.13874717,2416.2,2415.7,4.93060992]
[1750846294424,4.68807017,2416.6,2415.7,0.7911]
[1750846294425,4.13908758,2416.0,2415.7,0.7911]
[1750846294658,4.13974625,2415.7,2415.2,4.94339291]
[1750846294875,4.14019779,2415.4,2415.2,0.803]
[1750846295022,0.55,2415.9,2415.2,0.803]
[1750846295350,4.14010352,2415.4,2415.2,0.803]
[1750846295752,0.6156842,2416.5,2415.2,0.803]
[1750846295956,10.0,2416.0,2415.6,4.13964948]
[1750846296119,10.0,2416.0,2415.2,4.14039393]
[1750846296120,4.13872994,2416.3,2415.7,0.7997]
[1750846296326,4.13885234,2416.2,2415.7,4.9392675]
[1750846296753,4.13885234,2416.2,2415.7,0.7997]
[1750846297148,4.13863219,2416.3,2415.7,4.93928451]
[1750846297364,4.13880861,2416.2,2415.7,0.7997]
[1750846297549,4.13880861,2416.2,2415.7,4.9392764]
[1750846297855,1.33154394,2416.3,2415.7,4.9392764]
[1750846297856,1.33154394,2416.3,2415.7,0.7997]
[1750846298041,0.6156842,2416.5,2415.3,4.14023921]
[1750846298042,0.6156842,2416.5,2415.9,0.8104]
[1750846298245,10.31714518,2416.8,2415.6,0.8104]
[1750846298451,4.13923289,2416.0,2415.6,0.8104]
[1750846298669,4.13931259,2415.9,2415.6,0.8104]
[1750846298829,0.41393126,2415.8,2415.6,0.8104]
[1750846299029,4.1391659,2416.0,2415.6,0.8104]
[1750846300664,4.13925845,2415.9,2415.6,0.8104]
[1750846300830,4.1391243,2416.0,2415.6,0.8104]
[1750846303651,4.13926995,2415.9,2415.6,0.8104]
[1750846303847,4.13958686,2415.7,2415.6,0.8104]
[1750846304056,4.13924417,2415.9,2415.4,0.79]
[1750846304261,0.55,2415.9,2414.8,0.79]
[1750846304551,4.14024644,2415.4,2414.8,4.93105223]
[1750846304760,4.14030242,2415.3,2414.8,4.93105223]
[1750846305167,4.14024644,2415.4,2414.8,4.93105223]
[1750846305346,4.13964501,2415.7,2414.8,4.93105223]
[1750846305347,4.13992962,2415.5,2414.8,0.79]
[1750846305572,4.14081768,2415.0,2414.8,0.79]
[1750846306064,4.1408657,2415.0,2414.8,0.79]
[1750846306267,1.37790801,2415.6,2414.8,0.79]
[1750846306574,4.13992962,2415.5,2414.8,0.79]
[1750846306782,4.69188477,2415.4,2414.8,0.79]
[1750846307074,4.14086625,2415.0,2414.8,0.79]
[1750846307667,4.14095821,2414.9,2414.8,0.79]
[1750846307831,4.14095821,2414.9,2414.5,0.8326]
[1750846308177,4.14086246,2415.0,2414.5,0.8326]
[1750846308380,4.69191128,2415.4,2414.5,0.8326]
[1750846308381,4.14125919,2414.8,2414.5,0.8326]
[1750846308741,4.14133251,2414.7,2414.5,0.8326]
[1750846309282,4.14094292,2415.0,2414.5,0.8326]
[1750846309492,4.14063124,2415.1,2414.5,4.97422087]
[1750846309667,5.60949725,2415.3,2414.7,0.8049]
[1750846309849,4.14044385,2415.2,2414.7,0.8049]
[1750846310045,1.46919113,2415.3,2414.7,0.8049]
[1750846310274,0.55178376,2415.4,2415.0,0.8178]
[1750846310275,4.14015075,2415.4,2415.0,0.8178]
[1750846310596,4.14061529,2415.1,2414.6,0.8178]
[1750846310755,4.14075361,2415.1,2414.6,0.8178]
[1750846311258,4.14075361,2415.1,2414.6,4.95926419]
[1750846311985,4.14080006,2415.0,2414.6,0.8178]
[1750846312575,4.14070147,2415.1,2414.6,4.9592576]
[1750846313274,4.14123418,2414.8,2414.5,0.7982]
[1750846313653,4.14103438,2414.9,2414.5,0.7982]
[1750846313855,4.14087249,2415.0,2414.5,0.7982]
[1750846314057,4.14041074,2415.3,2414.8,0.8145]
[1750846314260,4.13907284,2416.0,2414.9,0.754]
[1750846314452,4.14039695,2415.3,2414.8,0.754]
[1750846314653,4.14039695,2415.3,2414.9,0.754]
[1750846315048,10.0,2416.1,2414.9,0.754]
[1750846315260,4.14028501,2415.3,2414.9,0.754]
[1750846315754,4.14064287,2415.1,2414.9,0.754]
[1750846315953,4.14051628,2415.2,2414.9,0.754]
[1750846316155,4.14064363,2415.1,2414.9,0.754]
[1750846316985,4.14064363,2415.1,2414.9,0.9604]
[1750846317562,4.1405347,2415.2,2414.9,0.9604]
[1750846317883,4.14016897,2415.4,2415.1,0.2064]
[1750846318384,4.14028948,2415.3,2415.1,0.2064]
[1750846318547,4.14044385,2415.2,2415.0,0.7742]
[1750846318747,4.14061529,2415.1,2415.0,0.7742]
[1750846319783,4.14052186,2415.2,2415.0,0.7742]
[1750846320162,4.14033482,2415.3,2415.0,0.7742]
[1750846320385,4.14044774,2415.2,2415.0,0.7742]
[1750846321190,4.14061529,2415.1,2415.0,0.7742]
[1750846321854,4.14052663,2415.2,2415.0,0.7742]
[1750846322396,4.14061529,2415.1,2415.0,0.7742]
[1750846322682,4.34734921,2415.0,2414.6,0.2064]
[1750846322874,4.14122542,2414.8,2414.6,0.2064]
[1750846323582,0.2064,2414.9,2414.6,0.2064]
[1750846323786,4.34737462,2414.9,2414.6,0.2064]
[1750846323986,0.2064,2414.9,2414.7,0.7627]
[1750846325874,4.13999908,2415.5,2414.8,4.14103931]
[1750846326078,0.2064,2415.3,2415.0,0.7968]
[1750846326492,0.2064,2415.3,2415.1,4.14051078]
[1750846326694,0.2064,2415.5,2415.3,4.14010409]
[1750846326903,4.13821642,2416.5,2415.4,0.7536]
[1750846326904,4.13969461,2415.7,2415.4,0.7536]
[1750846327061,4.13969461,2415.7,2415.5,0.2064]
[1750846327462,4.13946866,2415.8,2415.5,0.2064]
[1750846329131,4.13959183,2415.7,2415.5,0.2064]
[1750846329430,4.13951043,2415.8,2415.5,0.2064]
[1750846330025,4.34569696,2415.9,2415.5,0.2064]
[1750846330621,4.13942852,2415.8,2415.5,0.2064]
[1750846330830,4.13932255,2415.9,2415.6,0.8224]
[1750846331013,4.13909927,2416.0,2415.6,1.0288]
[1750846331200,4.13930238,2415.9,2415.6,1.0288]
[1750846331406,4.13950638,2415.8,2415.6,1.0288]
[1750846332206,4.13930662,2415.9,2415.6,1.0288]
[1750846332410,4.13930662,2415.9,2415.7,11.725]
[1750846333103,0.55,2416.5,2415.7,11.725]
[1750846333104,4.13879342,2416.2,2415.7,11.725]
[1750846333315,4.13879342,2416.2,2415.9,0.2064]
[1750846333520,4.13864273,2416.3,2415.9,0.2064]
[1750846333735,0.2064,2416.4,2416.0,0.7926]
[1750846333923,4.34470984,2416.5,2416.0,4.93166357]
[1750846334116,10.2064,2416.5,2416.1,0.2064]
[1750846334312,10.2064,2416.5,2416.2,1.794]
[1750846334313,4.13840839,2416.4,2416.2,1.794]
[1750846334520,4.13855895,2416.3,2416.2,1.794]
[1750846334732,4.13855895,2416.3,2416.1,7.0504]
[1750846334733,4.13873023,2416.2,2416.1,7.0504]
[1750846335038,4.13873023,2416.2,2416.1,8.646]
[1750846336734,4.34485919,2416.4,2416.0,0.7926]
[1750846336735,4.13863018,2416.3,2416.0,0.7926]
[1750846336924,4.13863018,2416.3,2416.1,1.802]
[1750846337130,4.13873023,2416.2,2416.1,1.802]
[1750846337330,4.13865624,2416.3,2416.1,1.802]
[1750846339334,4.34484551,2416.4,2416.1,1.802]
[1750846339915,4.13857742,2416.3,2416.1,1.802]
[1750846341420,4.34488162,2416.4,2416.1,1.802]
[1750846341615,4.13807578,2416.6,2416.2,0.8093]
[1750846341811,4.13807578,2416.6,2416.3,0.2064]
[1750846342014,14.34436393,2416.7,2416.3,0.2064]
[1750846342847,4.13806402,2416.6,2416.3,0.2064]
[1750846343044,4.13828778,2416.5,2416.3,0.2064]
[1750846344224,4.13814011,2416.6,2416.3,0.2064]
[1750846344749,4.13821642,2416.5,2416.4,9.929]
[1750846344947,4.34435443,2416.7,2416.4,9.929]
[1750846345449,4.34427423,2416.7,2416.4,9.929]
[1750846345840,4.13811924,2416.6,2416.4,9.929]
[1750846346222,4.13811924,2416.6,2416.4,16.756]
[1750846346446,4.3443448,2416.7,2416.4,16.756]
[1750846346819,4.3396448,2416.7,2416.4,16.756]
[1750846349357,4.1381266,2416.6,2416.4,16.756]
[1750846350631,4.33964863,2416.7,2416.4,16.756]
[1750846352457,0.2017,2416.7,2416.4,16.756]
[1750846353059,4.33960237,2416.7,2416.4,16.756]
[1750846354957,4.13806481,2416.6,2416.4,16.756]
[1750846355159,4.33961988,2416.7,2416.4,16.756]
[1750846355365,4.33961988,2416.7,2416.3,4.34493862]
[1750846355564,4.33961988,2416.7,2416.3,18.7474]
[1750846355761,4.13750918,2417.0,2416.5,4.13821165]
[1750846355996,4.34393545,2416.9,2416.6,6.81]
[1750846356650,14.1374899,2417.0,2416.6,6.81]
[1750846356847,14.1374899,2417.0,2416.6,7.0164]
[1750846357488,4.13754361,2416.9,2416.6,7.0164]
[1750846358694,0.2064,2417.1,2416.7,0.8161]
[1750846358894,0.2064,2417.1,2416.8,1.802]
[1750846359097,0.2064,2417.1,2416.9,6.807]
[1750846359265,4.13677589,2417.4,2417.0,0.2064]
[1750846359464,4.13710479,2417.2,2417.0,0.2064]
[1750846359691,4.13694363,2417.3,2417.0,0.2064]
[1750846359997,4.13704457,2417.2,2417.0,0.2064]
[1750846360194,4.13694504,2417.3,2417.0,0.2064]
[1750846360566,4.13677046,2417.4,2417.0,0.2064]
[1750846360985,4.34299866,2417.5,2417.1,0.8018]
[1750846361207,4.13671753,2417.4,2417.1,0.8018]
[1750846361767,4.13671753,2417.4,2417.2,6.803]
[1750846362066,4.13671753,2417.4,2417.3,1.801]
[1750846362261,4.34296806,2417.5,2417.3,1.801]
[1750846362798,4.13667576,2417.4,2417.3,1.801]
[1750846363299,4.3429993,2417.5,2417.3,1.801]
[1750846364611,0.2064,2417.5,2417.3,1.801]
[1750846364897,4.13628611,2417.7,2417.3,1.801]
[1750846365098,0.2064,2417.6,2417.4,14.0626189]
[1750846365304,4.13599664,2417.8,2417.4,16.724]
[1750846365468,0.2064,2417.7,2417.5,0.8169]
[1750846365893,4.34258857,2417.7,2417.4,9.926]
[1750846366089,4.13633355,2417.6,2417.5,1.777]
[1750846366277,4.13634782,2417.6,2417.5,1.777]
[1750846370082,0.2064,2417.7,2417.5,1.777]
[1750846370405,4.34224521,2417.9,2417.6,0.8059]
[1750846371603,0.2064,2417.9,2417.6,0.8059]
[1750846371783,0.2064,2417.9,2417.7,6.794]
[1750846375519,4.34224487,2417.9,2417.7,6.794]
[1750846376022,0.2064,2417.9,2417.7,6.794]
[1750846377294,14.13554556,2418.1,2417.7,10.93015565]
[1750846377497,14.34194556,2418.1,2417.7,10.93015565]
[1750846377698,14.34194556,2418.1,2417.7,6.794]
[1750846377913,4.13565682,2418.0,2417.7,6.794]
[1750846378099,14.34196233,2418.1,2417.7,6.794]
[1750846381027,4.13565129,2418.0,2417.7,6.794]
[1750846381323,14.34197527,2418.1,2417.7,6.794]
[1750846381922,4.34197527,2418.1,2417.7,6.794]
[1750846382303,4.1356592,2418.0,2417.7,6.794]
[1750846383022,4.13604287,2417.8,2417.6,1.0123]
[1750846383229,4.13599139,2417.8,2417.7,8.556]
[1750846383433,4.135884,2417.9,2417.7,8.556]
[1750846384115,4.135884,2417.9,2417.5,0.2064]
[1750846384319,4.135884,2417.9,2417.8,1.777]
[1750846387100,4.135884,2417.9,2417.5,4.34289183]